[Event "*** Titled Tuesday Blitz"]
[Site "Chess.com"]
[Date "2020.04.14"]
[Round "7"]
[White "rynos0411"]
[Black "CakeinSpace2002"]
[Result "1-0"]
[WhiteElo "2401"]
[BlackElo "2198"]
[TimeControl "180+1"]
[EndTime "11:14:39 PDT"]
[Termination "rynos0411 won on time"]

1. e4 {[%clk 0:03:00.9]} 1... e5 {[%clk 0:02:55.3]} 2. Nf3 {[%clk 0:02:59.5]}
2... Nc6 {[%clk 0:02:52.7]} 3. Bb5 {[%clk 0:02:52.7]} 3... a6 {[%clk 0:02:51.5]}
4. Ba4 {[%clk 0:02:47]} 4... Nf6 {[%clk 0:02:49.6]} 5. O-O {[%clk 0:02:47]} 5...
b5 {[%clk 0:02:43.3]} 6. Bb3 {[%clk 0:02:46.7]} 6... Be7 {[%clk 0:02:43.5]} 7.
Re1 {[%clk 0:02:45.5]} 7... O-O {[%clk 0:02:41.7]} 8. a4 {[%clk 0:02:35.6]} 8...
b4 {[%clk 0:02:37.9]} 9. d3 {[%clk 0:02:31.6]} 9... d6 {[%clk 0:02:36.8]} 10. h3
{[%clk 0:02:29.4]} 10... Be6 {[%clk 0:02:26.7]} 11. c3 {[%clk 0:02:18.9]} 11...
Rb8 {[%clk 0:02:16.4]} 12. Bxe6 {[%clk 0:02:10.8]} 12... fxe6 {[%clk 0:02:12.8]}
13. Nbd2 {[%clk 0:02:11.7]} 13... Qe8 {[%clk 0:01:55.3]} 14. Qb3 {[%clk
0:01:58.5]} 14... Qd7 {[%clk 0:01:21.9]} 15. Qc2 {[%clk 0:01:43.1]} 15... Nh5
{[%clk 0:01:17.3]} 16. Nf1 {[%clk 0:01:35.9]} 16... Rxf3 {[%clk 0:01:15.6]} 17.
gxf3 {[%clk 0:01:35.2]} 17... Rf8 {[%clk 0:01:16]} 18. Nh2 {[%clk 0:01:32.8]}
18... Qd8 {[%clk 0:01:02]} 19. cxb4 {[%clk 0:01:23.1]} 19... Nd4 {[%clk
0:00:57]} 20. Qc4 {[%clk 0:01:21.4]} 20... Bg5 {[%clk 0:00:50.1]} 21. Kh1 {[%clk
0:00:35.1]} 21... Bxc1 {[%clk 0:00:45.9]} 22. Qxc1 {[%clk 0:00:32.1]} 22... Qh4
{[%clk 0:00:46.2]} 23. Rg1 {[%clk 0:00:23.9]} 23... Qxh3 {[%clk 0:00:30]} 24.
Qxc7 {[%clk 0:00:12.1]} 24... Nxf3 {[%clk 0:00:21]} 25. Rg2 {[%clk 0:00:12.2]}
25... Nxh2 {[%clk 0:00:15.8]} 26. Rxh2 {[%clk 0:00:13.1]} 26... Qf3+ {[%clk
0:00:14.7]} 27. Rg2 {[%clk 0:00:13.2]} 27... Rf7 {[%clk 0:00:12]} 28. Qd8+
{[%clk 0:00:12.3]} 28... Rf8 {[%clk 0:00:10.8]} 29. Qg5 {[%clk 0:00:12.3]} 29...
g6 {[%clk 0:00:09]} 30. Qg4 {[%clk 0:00:07.8]} 30... Qxg4 {[%clk 0:00:04.8]} 31.
Rxg4 {[%clk 0:00:08.7]} 31... Rxf2 {[%clk 0:00:04.9]} 32. Rb1 {[%clk 0:00:08.1]}
32... Nf4 {[%clk 0:00:04.1]} 33. Rg3 {[%clk 0:00:06.6]} 33... Ne2 {[%clk
0:00:03.3]} 34. Re3 {[%clk 0:00:04.5]} 34... Nd4 {[%clk 0:00:03]} 35. Kg1 {[%clk
0:00:04.4]} 35... Rf8 {[%clk 0:00:02]} 36. Kg2 {[%clk 0:00:04.6]} 36... Rb8
{[%clk 0:00:01.6]} 37. b5 {[%clk 0:00:04.8]} 37... a5 {[%clk 0:00:01.9]} 38. Rc1
{[%clk 0:00:04.1]} 38... Rb6 {[%clk 0:00:02.8]} 39. Rc8+ {[%clk 0:00:04]} 39...
Kg7 {[%clk 0:00:02.1]} 40. Re1 {[%clk 0:00:04.9]} 40... Kh6 {[%clk 0:00:02.5]}
41. Rec1 {[%clk 0:00:05.5]} 41... Kg7 {[%clk 0:00:02.8]} 42. Rh1 {[%clk
0:00:06.4]} 42... g5 {[%clk 0:00:02.3]} 43. Rc7+ {[%clk 0:00:06.9]} 43... Kg6
{[%clk 0:00:02]} 44. Rhxh7 {[%clk 0:00:07.8]} 1-0

[Event "*** Titled Tuesday Blitz"]
[Site "Chess.com"]
[Date "2020.04.14"]
[Round "7"]
[White "katchesskat"]
[Black "Pittiplatsh"]
[Result "1-0"]
[WhiteElo "2196"]
[BlackElo "2321"]
[TimeControl "180+1"]
[EndTime "11:14:41 PDT"]
[Termination "katchesskat won on time"]

1. c4 {[%clk 0:03:00.9]} 1... g6 {[%clk 0:02:57.9]} 2. e3 {[%clk 0:03:01.8]}
2... Bg7 {[%clk 0:02:57.7]} 3. Nf3 {[%clk 0:03:01]} 3... Nf6 {[%clk 0:02:58]} 4.
Qc2 {[%clk 0:03:00.8]} 4... O-O {[%clk 0:02:58.2]} 5. a3 {[%clk 0:03:01.2]} 5...
c5 {[%clk 0:02:58]} 6. Be2 {[%clk 0:03:01.3]} 6... b6 {[%clk 0:02:58]} 7. O-O
{[%clk 0:03:01.6]} 7... Bb7 {[%clk 0:02:58.2]} 8. d3 {[%clk 0:03:02.3]} 8... d5
{[%clk 0:02:58.2]} 9. Nbd2 {[%clk 0:03:02.9]} 9... Nbd7 {[%clk 0:02:57.1]} 10.
Re1 {[%clk 0:03:03.2]} 10... Rc8 {[%clk 0:02:56.2]} 11. b3 {[%clk 0:03:03.5]}
11... e6 {[%clk 0:02:52.8]} 12. Bb2 {[%clk 0:03:03.3]} 12... Qe7 {[%clk
0:02:53.3]} 13. Rac1 {[%clk 0:03:02.8]} 13... Rfd8 {[%clk 0:02:53.2]} 14. h3
{[%clk 0:03:03]} 14... Nb8 {[%clk 0:02:48.2]} 15. Qb1 {[%clk 0:02:59.2]} 15...
Nc6 {[%clk 0:02:47.3]} 16. Qa1 {[%clk 0:02:56.6]} 16... Ne8 {[%clk 0:02:38.7]}
17. Bxg7 {[%clk 0:02:55.5]} 17... Nxg7 {[%clk 0:02:39.2]} 18. Qb2 {[%clk
0:02:54.8]} 18... Nf5 {[%clk 0:02:32.9]} 19. Nh2 {[%clk 0:02:52]} 19... d4
{[%clk 0:02:30.8]} 20. Bf1 {[%clk 0:02:43.4]} 20... dxe3 {[%clk 0:02:22.9]} 21.
fxe3 {[%clk 0:02:44.3]} 21... e5 {[%clk 0:02:20.7]} 22. Ne4 {[%clk 0:02:38.1]}
22... Nd6 {[%clk 0:02:11.9]} 23. Nc3 {[%clk 0:02:25.4]} 23... Nb8 {[%clk
0:01:51.5]} 24. Nd5 {[%clk 0:02:17.9]} 24... Bxd5 {[%clk 0:01:50.7]} 25. cxd5
{[%clk 0:02:18.8]} 25... Nd7 {[%clk 0:01:47.7]} 26. e4 {[%clk 0:02:16.9]} 26...
Nb5 {[%clk 0:01:44.6]} 27. Be2 {[%clk 0:02:08]} 27... h5 {[%clk 0:01:40.7]} 28.
Nf3 {[%clk 0:02:05.2]} 28... Nd4 {[%clk 0:01:39.9]} 29. Nxd4 {[%clk 0:02:05]}
29... exd4 {[%clk 0:01:40]} 30. b4 {[%clk 0:02:04.7]} 30... Ne5 {[%clk
0:01:38.7]} 31. Rf1 {[%clk 0:02:03.8]} 31... Qg5 {[%clk 0:01:30.9]} 32. Kh1
{[%clk 0:01:53.2]} 32... h4 {[%clk 0:01:20.3]} 33. bxc5 {[%clk 0:01:45.8]} 33...
bxc5 {[%clk 0:01:18.7]} 34. Qb7 {[%clk 0:01:37.2]} 34... c4 {[%clk 0:01:06.1]}
35. dxc4 {[%clk 0:01:32.6]} 35... d3 {[%clk 0:01:06.3]} 36. Bxd3 {[%clk
0:01:15.1]} 36... Nxd3 {[%clk 0:01:06.1]} 37. Qxf7+ {[%clk 0:01:09.8]} 37... Kh8
{[%clk 0:01:05.2]} 38. Rc3 {[%clk 0:00:39.9]} 38... Ne5 {[%clk 0:01:00.9]} 39.
Qe6 {[%clk 0:00:38.2]} 39... Re8 {[%clk 0:00:57.1]} 40. Qa6 {[%clk 0:00:31.8]}
40... Rf8 {[%clk 0:00:53.7]} 41. Rcc1 {[%clk 0:00:24.7]} 41... Qg3 {[%clk
0:00:43.3]} 42. Rf6 {[%clk 0:00:18.8]} 42... Nd3 {[%clk 0:00:18.7]} 43. Rcf1
{[%clk 0:00:16.9]} 43... Ne1 {[%clk 0:00:18.9]} 44. Rxf8+ {[%clk 0:00:15.7]}
44... Rxf8 {[%clk 0:00:18.1]} 45. Rxf8+ {[%clk 0:00:15.7]} 45... Kg7 {[%clk
0:00:10.9]} 46. Qf6+ {[%clk 0:00:15.3]} 1-0

[Event "*** Titled Tuesday Blitz"]
[Site "Chess.com"]
[Date "2020.04.14"]
[Round "7"]
[White "AnishGiri"]
[Black "Guachiney"]
[Result "0-1"]
[WhiteElo "3015"]
[BlackElo "2855"]
[TimeControl "180+1"]
[EndTime "11:14:43 PDT"]
[Termination "Guachiney won by resignation"]

1. e4 {[%clk 0:03:00.9]} 1... c5 {[%clk 0:02:59.6]} 2. Nf3 {[%clk 0:03:01.3]}
2... d6 {[%clk 0:03:00]} 3. d4 {[%clk 0:03:01.2]} 3... cxd4 {[%clk 0:03:00.9]}
4. Nxd4 {[%clk 0:03:01.7]} 4... Nf6 {[%clk 0:03:01.6]} 5. Nc3 {[%clk 0:03:02.3]}
5... a6 {[%clk 0:03:02.3]} 6. f3 {[%clk 0:03:02.7]} 6... e5 {[%clk 0:03:01.7]}
7. Nb3 {[%clk 0:03:03.1]} 7... Be6 {[%clk 0:03:02.3]} 8. Be3 {[%clk 0:03:03.7]}
8... h5 {[%clk 0:03:02.9]} 9. Nd5 {[%clk 0:03:04.1]} 9... Bxd5 {[%clk
0:03:02.7]} 10. exd5 {[%clk 0:03:04.6]} 10... Nbd7 {[%clk 0:03:03.5]} 11. Qd2
{[%clk 0:03:05.2]} 11... g6 {[%clk 0:03:04.1]} 12. O-O-O {[%clk 0:03:05.7]}
12... Bg7 {[%clk 0:03:04.2]} 13. Kb1 {[%clk 0:03:05.5]} 13... O-O {[%clk
0:03:04]} 14. Be2 {[%clk 0:02:58]} 14... Qc7 {[%clk 0:03:03.6]} 15. g4 {[%clk
0:02:51.3]} 15... hxg4 {[%clk 0:02:58.5]} 16. fxg4 {[%clk 0:02:51.6]} 16... Nb6
{[%clk 0:02:57.9]} 17. g5 {[%clk 0:02:18.9]} 17... Nfxd5 {[%clk 0:02:24.5]} 18.
Bxb6 {[%clk 0:02:17.4]} 18... Nxb6 {[%clk 0:02:25.4]} 19. Qxd6 {[%clk
0:02:17.3]} 19... Rac8 {[%clk 0:02:20.3]} 20. Qxc7 {[%clk 0:02:14.1]} 20... Rxc7
{[%clk 0:02:21.2]} 21. Bf3 {[%clk 0:02:09.4]} 21... e4 {[%clk 0:02:16.4]} 22.
Bxe4 {[%clk 0:02:07.7]} 22... Na4 {[%clk 0:02:16.1]} 23. Nd4 {[%clk 0:02:04.6]}
23... Rd8 {[%clk 0:02:01.4]} 24. c3 {[%clk 0:02:00.6]} 24... Rxc3 {[%clk
0:01:55.9]} 25. Ne6 {[%clk 0:01:27.9]} 25... Rxd1+ {[%clk 0:01:23.7]} 26. Rxd1
{[%clk 0:01:27.2]} 26... Re3 {[%clk 0:01:24.2]} 27. Rd8+ {[%clk 0:01:21.3]}
27... Kh7 {[%clk 0:01:21.7]} 28. Nxg7 {[%clk 0:01:21.9]} 28... Kxg7 {[%clk
0:01:17.6]} 29. Bxb7 {[%clk 0:01:15.5]} 29... Re2 {[%clk 0:01:17.3]} 30. Bxa6
{[%clk 0:01:09.2]} 30... Rxb2+ {[%clk 0:01:16.1]} 31. Kc1 {[%clk 0:00:59.3]}
31... Rxa2 {[%clk 0:01:03.5]} 32. Rd2 {[%clk 0:00:58.3]} 32... Ra1+ {[%clk
0:00:47.1]} 33. Kc2 {[%clk 0:00:58.3]} 33... Nc5 {[%clk 0:00:47.6]} 34. Bd3
{[%clk 0:00:52.8]} 34... Rg1 {[%clk 0:00:37.5]} 35. Bc4 {[%clk 0:00:43.6]} 35...
Rxg5 {[%clk 0:00:34.3]} 36. Rf2 {[%clk 0:00:43.9]} 36... f5 {[%clk 0:00:33.2]}
37. Kd1 {[%clk 0:00:44.4]} 37... Rg4 {[%clk 0:00:31.8]} 38. Be2 {[%clk
0:00:43.5]} 38... Rg1+ {[%clk 0:00:31.4]} 39. Kc2 {[%clk 0:00:43.7]} 39... Ne4
{[%clk 0:00:32.1]} 40. Rf1 {[%clk 0:00:40.4]} 40... Rg2 {[%clk 0:00:32.1]} 41.
Kd3 {[%clk 0:00:40.5]} 41... Rxh2 {[%clk 0:00:32.2]} 42. Ra1 {[%clk 0:00:40.4]}
42... Kf6 {[%clk 0:00:29.6]} 43. Bf3 {[%clk 0:00:39.9]} 43... Rh3 {[%clk
0:00:29]} 44. Ke2 {[%clk 0:00:40.5]} 44... Ng5 {[%clk 0:00:29]} 45. Ra6+ {[%clk
0:00:40.2]} 45... Kg7 {[%clk 0:00:28.7]} 46. Bd5 {[%clk 0:00:39.9]} 46... Rc3
{[%clk 0:00:26.9]} 47. Ra7+ {[%clk 0:00:39]} 47... Kh6 {[%clk 0:00:26.8]} 48.
Ra6 {[%clk 0:00:39]} 48... Nh3 {[%clk 0:00:26.3]} 49. Ra4 {[%clk 0:00:36.2]}
49... Kg5 {[%clk 0:00:23.9]} 50. Bf7 {[%clk 0:00:33.6]} 50... Nf4+ {[%clk
0:00:23.7]} 51. Kf2 {[%clk 0:00:31.9]} 51... Rc7 {[%clk 0:00:21]} 52. Be8 {[%clk
0:00:32]} 52... Nd3+ {[%clk 0:00:20.2]} 53. Kf1 {[%clk 0:00:29.5]} 53... Ne5
{[%clk 0:00:21.1]} 54. Ra5 {[%clk 0:00:27.6]} 54... Ng4 {[%clk 0:00:20.6]} 55.
Ra6 {[%clk 0:00:28]} 55... Nf6 {[%clk 0:00:21.2]} 56. Bb5 {[%clk 0:00:28.4]}
56... Rc5 {[%clk 0:00:20.9]} 57. Ba4 {[%clk 0:00:28.1]} 57... Rc1+ {[%clk
0:00:20]} 58. Ke2 {[%clk 0:00:27.8]} 58... Ra1 {[%clk 0:00:20.9]} 59. Kd2 {[%clk
0:00:25.6]} 59... Ne4+ {[%clk 0:00:20.6]} 60. Kc2 {[%clk 0:00:26.1]} 60... Nc5
{[%clk 0:00:21.2]} 61. Kb2 {[%clk 0:00:26.7]} 61... Rxa4 {[%clk 0:00:20.6]} 0-1

[Event "*** Titled Tuesday Blitz"]
[Site "Chess.com"]
[Date "2020.04.14"]
[Round "7"]
[White "Casablanca"]
[Black "ChessAintFun"]
[Result "0-1"]
[WhiteElo "2355"]
[BlackElo "2532"]
[TimeControl "180+1"]
[EndTime "11:14:44 PDT"]
[Termination "ChessAintFun won by checkmate"]

1. d4 {[%clk 0:03:00.9]} 1... Nf6 {[%clk 0:02:59.7]} 2. Bg5 {[%clk 0:03:00.1]}
2... Ne4 {[%clk 0:02:59.9]} 3. Bf4 {[%clk 0:02:59.8]} 3... c5 {[%clk 0:03:00.3]}
4. f3 {[%clk 0:02:56.4]} 4... Qa5+ {[%clk 0:03:00.7]} 5. c3 {[%clk 0:02:56.4]}
5... Nf6 {[%clk 0:03:01.2]} 6. d5 {[%clk 0:02:56.7]} 6... e6 {[%clk 0:02:55.1]}
7. e4 {[%clk 0:02:56.5]} 7... d6 {[%clk 0:02:44.1]} 8. Qd2 {[%clk 0:02:52.5]}
8... e5 {[%clk 0:02:42.5]} 9. Be3 {[%clk 0:02:48.4]} 9... Be7 {[%clk 0:02:42.2]}
10. c4 {[%clk 0:02:46.5]} 10... Bd8 {[%clk 0:02:35]} 11. Nc3 {[%clk 0:02:28.4]}
11... Bd7 {[%clk 0:02:32.4]} 12. a3 {[%clk 0:02:09.1]} 12... Na6 {[%clk
0:02:30.3]} 13. Rb1 {[%clk 0:02:04.1]} 13... O-O {[%clk 0:02:29.1]} 14. Nge2
{[%clk 0:01:48.6]} 14... Qc7 {[%clk 0:02:28.1]} 15. Ng3 {[%clk 0:01:46.5]} 15...
Qc8 {[%clk 0:02:28]} 16. Be2 {[%clk 0:01:45.5]} 16... Ba5 {[%clk 0:02:28]} 17.
O-O {[%clk 0:01:45]} 17... Ne8 {[%clk 0:02:23.3]} 18. Qc2 {[%clk 0:01:41.5]}
18... g6 {[%clk 0:02:21.1]} 19. Rfc1 {[%clk 0:01:34.8]} 19... f5 {[%clk
0:02:20.5]} 20. Nf1 {[%clk 0:01:16.7]} 20... Nf6 {[%clk 0:02:15.9]} 21. Nd2
{[%clk 0:01:11.7]} 21... Qe8 {[%clk 0:02:15.7]} 22. Na2 {[%clk 0:00:55]} 22...
Bxd2 {[%clk 0:02:03.5]} 23. Bxd2 {[%clk 0:00:55.9]} 23... fxe4 {[%clk
0:02:04.4]} 24. fxe4 {[%clk 0:00:55.4]} 24... Qe7 {[%clk 0:01:50.5]} 25. Rf1
{[%clk 0:00:54.3]} 25... Ng4 {[%clk 0:01:49.4]} 26. Bxg4 {[%clk 0:00:54.3]}
26... Bxg4 {[%clk 0:01:48]} 27. h3 {[%clk 0:00:54.5]} 27... Bd7 {[%clk 0:01:45]}
28. Qd3 {[%clk 0:00:51.8]} 28... Kg7 {[%clk 0:01:42.6]} 29. Nc3 {[%clk
0:00:41.9]} 29... Nc7 {[%clk 0:01:40.6]} 30. Qe3 {[%clk 0:00:42.1]} 30... Rxf1+
{[%clk 0:01:39.6]} 31. Rxf1 {[%clk 0:00:41.7]} 31... Rf8 {[%clk 0:01:40.2]} 32.
Qh6+ {[%clk 0:00:41.9]} 32... Kg8 {[%clk 0:01:40.6]} 33. Rxf8+ {[%clk
0:00:40.1]} 33... Qxf8 {[%clk 0:01:41.5]} 34. Qxf8+ {[%clk 0:00:40.7]} 34...
Kxf8 {[%clk 0:01:41.3]} 35. Kf2 {[%clk 0:00:40.2]} 35... Kf7 {[%clk 0:01:40.7]}
36. Bg5 {[%clk 0:00:32.7]} 36... Ne8 {[%clk 0:01:38.9]} 37. Ke3 {[%clk
0:00:32.1]} 37... Kg7 {[%clk 0:01:35.4]} 38. Bh4 {[%clk 0:00:26]} 38... h6
{[%clk 0:01:35.5]} 39. Be1 {[%clk 0:00:25.1]} 39... Kf6 {[%clk 0:01:34.5]} 40.
Bh4+ {[%clk 0:00:24.2]} 40... g5 {[%clk 0:01:34.6]} 41. Be1 {[%clk 0:00:25.1]}
41... h5 {[%clk 0:01:34.7]} 42. h4 {[%clk 0:00:23.7]} 42... Ng7 {[%clk
0:01:31.3]} 43. Ne2 {[%clk 0:00:20.6]} 43... Bg4 {[%clk 0:01:28.3]} 44. Nc3
{[%clk 0:00:18]} 44... Bd7 {[%clk 0:01:25.9]} 45. Ne2 {[%clk 0:00:17.6]} 45...
Kg6 {[%clk 0:01:22.6]} 46. Nc3 {[%clk 0:00:17.6]} 46... Ne8 {[%clk 0:01:22.2]}
47. b4 {[%clk 0:00:17.4]} 47... b6 {[%clk 0:01:20.5]} 48. b5 {[%clk 0:00:16.3]}
48... Nc7 {[%clk 0:01:08.4]} 49. a4 {[%clk 0:00:15.4]} 49... a5 {[%clk
0:01:08.9]} 50. Ne2 {[%clk 0:00:14.5]} 50... Ne8 {[%clk 0:01:08.9]} 51. Ng1
{[%clk 0:00:13.1]} 51... Nf6 {[%clk 0:01:09.4]} 52. Nf3 {[%clk 0:00:11.6]} 52...
Bg4 {[%clk 0:00:57.8]} 53. hxg5 {[%clk 0:00:07.6]} 53... Nh7 {[%clk 0:00:57]}
54. Bh4 {[%clk 0:00:05.8]} 54... Bxf3 {[%clk 0:00:56]} 55. Kxf3 {[%clk
0:00:06.2]} 55... Nxg5+ {[%clk 0:00:56.9]} 56. Bxg5 {[%clk 0:00:06.2]} 56...
Kxg5 {[%clk 0:00:57.8]} 57. Kg3 {[%clk 0:00:06.9]} 57... h4+ {[%clk 0:00:50.3]}
58. Kh3 {[%clk 0:00:07.3]} 58... Kf4 {[%clk 0:00:51.2]} 59. Kxh4 {[%clk
0:00:07.7]} 59... Kxe4 {[%clk 0:00:52.1]} 60. g4 {[%clk 0:00:08.4]} 60... Kd3
{[%clk 0:00:48.9]} 61. g5 {[%clk 0:00:06.4]} 61... e4 {[%clk 0:00:49.8]} 62. g6
{[%clk 0:00:06.7]} 62... e3 {[%clk 0:00:50.7]} 63. g7 {[%clk 0:00:06.2]} 63...
e2 {[%clk 0:00:51.6]} 64. g8=Q {[%clk 0:00:07]} 64... e1=Q+ {[%clk 0:00:52.5]}
65. Kh5 {[%clk 0:00:07.3]} 65... Qh1+ {[%clk 0:00:51.5]} 66. Kg6 {[%clk
0:00:07.3]} 66... Qg2+ {[%clk 0:00:51.5]} 67. Kf7 {[%clk 0:00:07.8]} 67... Qxg8+
{[%clk 0:00:52.4]} 68. Kxg8 {[%clk 0:00:08]} 68... Kxc4 {[%clk 0:00:53.3]} 69.
Kf7 {[%clk 0:00:08.8]} 69... Kxd5 {[%clk 0:00:54.1]} 70. Ke7 {[%clk 0:00:09]}
70... c4 {[%clk 0:00:54.9]} 71. Kd7 {[%clk 0:00:09.2]} 71... c3 {[%clk
0:00:55.8]} 72. Kc7 {[%clk 0:00:10.1]} 72... c2 {[%clk 0:00:56.7]} 73. Kxb6
{[%clk 0:00:10.9]} 73... c1=Q {[%clk 0:00:57.6]} 74. Kxa5 {[%clk 0:00:11.5]}
74... Kc5 {[%clk 0:00:57.4]} 75. Ka6 {[%clk 0:00:12.4]} 75... Qb2 {[%clk
0:00:57.4]} 76. a5 {[%clk 0:00:13.3]} 76... Qxb5+ {[%clk 0:00:57.7]} 77. Ka7
{[%clk 0:00:14.2]} 77... Kc6 {[%clk 0:00:57.7]} 78. a6 {[%clk 0:00:13.6]} 78...
Kc7 {[%clk 0:00:58.3]} 79. Ka8 {[%clk 0:00:13.8]} 79... Qb8# {[%clk 0:00:59.1]}
0-1

[Event "*** Titled Tuesday Blitz"]
[Site "Chess.com"]
[Date "2020.04.14"]
[Round "7"]
[White "Morshynska"]
[Black "Danfii"]
[Result "1-0"]
[WhiteElo "2172"]
[BlackElo "2297"]
[TimeControl "180+1"]
[EndTime "11:14:44 PDT"]
[Termination "Morshynska won by resignation"]

1. d4 {[%clk 0:03:00.9]} 1... Nf6 {[%clk 0:03:00]} 2. c4 {[%clk 0:02:58.6]} 2...
e6 {[%clk 0:03:00.4]} 3. Nf3 {[%clk 0:02:57.6]} 3... b6 {[%clk 0:03:00.3]} 4. g3
{[%clk 0:02:57.4]} 4... Ba6 {[%clk 0:03:00.2]} 5. b3 {[%clk 0:02:53.3]} 5...
Bb4+ {[%clk 0:02:59.8]} 6. Bd2 {[%clk 0:02:52.5]} 6... Be7 {[%clk 0:03:00.3]} 7.
Bg2 {[%clk 0:02:50.8]} 7... O-O {[%clk 0:02:59.6]} 8. O-O {[%clk 0:02:50.3]}
8... d5 {[%clk 0:03:00.1]} 9. Ne5 {[%clk 0:02:47.9]} 9... Bb7 {[%clk 0:02:58.7]}
10. Bc3 {[%clk 0:02:44.8]} 10... Nbd7 {[%clk 0:02:57]} 11. Nd2 {[%clk
0:02:14.6]} 11... c6 {[%clk 0:02:56.8]} 12. e4 {[%clk 0:02:07.7]} 12... dxc4
{[%clk 0:02:35.2]} 13. Ndxc4 {[%clk 0:01:58.9]} 13... c5 {[%clk 0:02:34.5]} 14.
Qe2 {[%clk 0:01:32.2]} 14... cxd4 {[%clk 0:02:20.4]} 15. Bxd4 {[%clk 0:01:33.1]}
15... Nxe5 {[%clk 0:02:20.9]} 16. Bxe5 {[%clk 0:01:30.7]} 16... Ba6 {[%clk
0:02:08.6]} 17. Rfd1 {[%clk 0:01:19.2]} 17... Qc8 {[%clk 0:02:08.7]} 18. Rac1
{[%clk 0:01:16]} 18... Rd8 {[%clk 0:02:07.3]} 19. Bxf6 {[%clk 0:01:01]} 19...
gxf6 {[%clk 0:01:55]} 20. e5 {[%clk 0:00:29.7]} 20... Rxd1+ {[%clk 0:01:54.4]}
21. Qxd1 {[%clk 0:00:26.8]} 21... Rb8 {[%clk 0:01:35.6]} 22. Nxb6 {[%clk
0:00:22.2]} 22... Qd8 {[%clk 0:01:19.5]} 23. Nd7 {[%clk 0:00:18.7]} 23... Rc8
{[%clk 0:01:06.6]} 24. Nxf6+ {[%clk 0:00:12.2]} 24... Bxf6 {[%clk 0:01:06.5]}
25. exf6 {[%clk 0:00:12]} 25... Rxc1 {[%clk 0:01:04]} 26. Qxc1 {[%clk
0:00:12.9]} 26... Qxf6 {[%clk 0:01:04.2]} 27. h4 {[%clk 0:00:12.6]} 27... Bd3
{[%clk 0:01:01.5]} 28. Qe3 {[%clk 0:00:12.4]} 28... Qa1+ {[%clk 0:00:52.4]} 29.
Kh2 {[%clk 0:00:11.8]} 29... Bb1 {[%clk 0:00:47.2]} 30. Qxa7 {[%clk 0:00:11.1]}
30... Qxa2 {[%clk 0:00:44.7]} 31. Qxa2 {[%clk 0:00:10.4]} 31... Bxa2 {[%clk
0:00:45.6]} 32. b4 {[%clk 0:00:11.3]} 32... Kf8 {[%clk 0:00:39.1]} 33. g4 {[%clk
0:00:11]} 33... h6 {[%clk 0:00:33.6]} 34. Kg3 {[%clk 0:00:10.9]} 34... Ke7
{[%clk 0:00:31.8]} 35. h5 {[%clk 0:00:11]} 35... e5 {[%clk 0:00:28.7]} 36. f4
{[%clk 0:00:10.3]} 36... exf4+ {[%clk 0:00:28]} 37. Kxf4 {[%clk 0:00:11.2]}
37... Bb1 {[%clk 0:00:20.2]} 38. b5 {[%clk 0:00:10.7]} 38... Kd7 {[%clk
0:00:19.6]} 39. b6 {[%clk 0:00:10.5]} 39... Kd6 {[%clk 0:00:17.3]} 40. b7 {[%clk
0:00:09.2]} 40... Kc7 {[%clk 0:00:16.8]} 41. Be4 {[%clk 0:00:08.3]} 41... Ba2
{[%clk 0:00:17]} 42. g5 {[%clk 0:00:08]} 42... hxg5+ {[%clk 0:00:15.6]} 43. Kxg5
{[%clk 0:00:08.9]} 43... f5 {[%clk 0:00:12.8]} 44. Kxf5 {[%clk 0:00:08.5]} 44...
Bg8 {[%clk 0:00:11.4]} 45. h6 {[%clk 0:00:07.9]} 45... Kb8 {[%clk 0:00:09]} 46.
Kf6 {[%clk 0:00:07.8]} 1-0

[Event "*** Titled Tuesday Blitz"]
[Site "Chess.com"]
[Date "2020.04.14"]
[Round "7"]
[White "JacekDubiel"]
[Black "JiaHaoxiang"]
[Result "1/2-1/2"]
[WhiteElo "2433"]
[BlackElo "2598"]
[TimeControl "180+1"]
[EndTime "11:14:45 PDT"]
[Termination "Game drawn by repetition"]

1. e4 {[%clk 0:03:00.9]} 1... c5 {[%clk 0:02:59.8]} 2. Nf3 {[%clk 0:03:01.1]}
2... e6 {[%clk 0:02:59.9]} 3. d4 {[%clk 0:03:00.5]} 3... cxd4 {[%clk 0:03:00.8]}
4. Nxd4 {[%clk 0:03:01.3]} 4... a6 {[%clk 0:03:01.1]} 5. Bd3 {[%clk 0:03:00.6]}
5... Nf6 {[%clk 0:03:00.6]} 6. O-O {[%clk 0:02:59]} 6... Qc7 {[%clk 0:03:00.7]}
7. Kh1 {[%clk 0:02:56.9]} 7... d6 {[%clk 0:02:59.8]} 8. f4 {[%clk 0:02:56.3]}
8... Nbd7 {[%clk 0:02:58.5]} 9. Qe2 {[%clk 0:02:30.2]} 9... Be7 {[%clk
0:02:57.7]} 10. c3 {[%clk 0:02:23.7]} 10... b6 {[%clk 0:02:55.6]} 11. Nd2 {[%clk
0:02:15.1]} 11... Bb7 {[%clk 0:02:55.3]} 12. Bc2 {[%clk 0:02:13.2]} 12... O-O
{[%clk 0:02:53.2]} 13. N2f3 {[%clk 0:02:09.7]} 13... g6 {[%clk 0:02:46.6]} 14.
Bd2 {[%clk 0:01:59.2]} 14... Rfe8 {[%clk 0:02:46.2]} 15. Rad1 {[%clk 0:01:57.9]}
15... Bf8 {[%clk 0:02:41.2]} 16. Bc1 {[%clk 0:01:54.9]} 16... Rac8 {[%clk
0:02:40]} 17. Rfe1 {[%clk 0:01:48.7]} 17... Nh5 {[%clk 0:02:32.3]} 18. Qf2
{[%clk 0:01:42]} 18... Bh6 {[%clk 0:02:30.2]} 19. f5 {[%clk 0:01:20.4]} 19...
Bxc1 {[%clk 0:02:25.2]} 20. Rxc1 {[%clk 0:01:20.1]} 20... exf5 {[%clk
0:02:25.6]} 21. exf5 {[%clk 0:01:19.8]} 21... Ne5 {[%clk 0:02:24]} 22. fxg6
{[%clk 0:01:04.9]} 22... hxg6 {[%clk 0:02:22.9]} 23. Bb3 {[%clk 0:01:05.2]}
23... Nd3 {[%clk 0:02:15.7]} 24. Rxe8+ {[%clk 0:01:05]} 24... Rxe8 {[%clk
0:02:15.4]} 25. Qc2 {[%clk 0:01:05.6]} 25... Nhf4 {[%clk 0:02:10.8]} 26. Rd1
{[%clk 0:00:59.7]} 26... Be4 {[%clk 0:02:09.4]} 27. Ng5 {[%clk 0:00:54]} 27...
d5 {[%clk 0:01:36.7]} 28. Nxe4 {[%clk 0:00:52.6]} 28... dxe4 {[%clk 0:01:36.5]}
29. g3 {[%clk 0:00:51.2]} 29... Nh3 {[%clk 0:01:23.2]} 30. Rf1 {[%clk
0:00:51.2]} 30... Re7 {[%clk 0:01:19.8]} 31. Qg2 {[%clk 0:00:33.4]} 31... Ng5
{[%clk 0:00:46]} 32. h4 {[%clk 0:00:32.6]} 32... Nf3 {[%clk 0:00:28.4]} 33. Nxf3
{[%clk 0:00:30.8]} 33... exf3 {[%clk 0:00:29.3]} 34. Qxf3 {[%clk 0:00:30.1]}
34... Ne5 {[%clk 0:00:28.6]} 35. Qf4 {[%clk 0:00:28.4]} 35... Qc6+ {[%clk
0:00:28.1]} 36. Kh2 {[%clk 0:00:27.8]} 36... Kg7 {[%clk 0:00:23.8]} 37. Qd4
{[%clk 0:00:20.2]} 37... Kh7 {[%clk 0:00:21.4]} 38. Kh3 {[%clk 0:00:17.2]} 38...
Qc8+ {[%clk 0:00:20.7]} 39. g4 {[%clk 0:00:17]} 39... Qc6 {[%clk 0:00:19.3]} 40.
Qd5 {[%clk 0:00:14.4]} 40... Qc7 {[%clk 0:00:16.5]} 41. Re1 {[%clk 0:00:14.5]}
41... f6 {[%clk 0:00:15.7]} 42. Re4 {[%clk 0:00:12.7]} 42... Qc8 {[%clk
0:00:14.6]} 43. Kg3 {[%clk 0:00:12.6]} 43... Rd7 {[%clk 0:00:13.3]} 44. Qe6
{[%clk 0:00:11.7]} 44... Rd3+ {[%clk 0:00:13.4]} 45. Kf2 {[%clk 0:00:11]} 45...
Qc5+ {[%clk 0:00:13.3]} 46. Kg2 {[%clk 0:00:08.3]} 46... Rd2+ {[%clk 0:00:13.1]}
47. Kh3 {[%clk 0:00:08.6]} 47... Rd3+ {[%clk 0:00:12.3]} 48. Kg2 {[%clk
0:00:08.8]} 48... Rd2+ {[%clk 0:00:09.4]} 49. Kh3 {[%clk 0:00:09]} 49... Rd3+
{[%clk 0:00:09.1]} 50. Kg2 {[%clk 0:00:08.5]} 1/2-1/2